[Event "94th Tradewise Hastings Congress"]
[Site "Hastings"]
[Date "2018.12.28"]
[Round "1"]
[White "Williams, Simon K"]
[Black "Willow, Jonah B"]
[Result "0-1"]
[ECO "A04"]
[WhiteElo "2472"]
[BlackElo "2218"]
[Annotator "ChessBase"]
[PlyCount "48"]
[EventDate "2018.12.28"]
[EventType "swiss"]
[EventCountry "ENG"]
[SourceTitle "playchess.com"]
[Source "ChessBase"]
[SourceQuality "1"]
[TimeControl "40/6000+30:3000+30"]

1. Nf3 {[%emt 0:00:49]} c5 {[%emt 0:00:00]} 2. e3 {[%emt 0:01:08]} Nf6 {[%emt 0:01:08]} 3. c4 {[%emt 0:00:55]} g6 {[%emt 0:00:32]} 4. d4 {[%emt 0:03:57]} cxd4 {[%emt 0:01:46]} 5. exd4 {[%emt 0:01:49]} d5 {[%emt 0:00:28]} 6. Nc3 {[%emt 0:00:10]} Nc6 {[%emt 0:00:04]} 7. Bg5 {[%emt 0:03:50]} Be6 {[%emt 0:00:05]} 8. c5 {[%emt 0:06:02]} Bg7 {[%emt 0:05:10]} 9. Bb5 {[%emt 0:00:19]} Ne4 {[%emt 0:08:50]} 10. O-O {[%emt 0:02:38]} O-O {[%emt 0:02:46]} 11. Be3 {[%emt 0:03:26]} Bg4 {[%emt 0:04:01]} 12. Bxc6 {[%emt 0:00:54]} bxc6 {[%emt 0:00:06]} 13. h3 {[%emt 0:00:09]} Bxf3 {[%emt 0:03:37]} 14. Qxf3 {[%emt 0:00:05]} f5 {[%emt 0:03:45]} 15. Qd1 {[%emt 0:00:15]} f4 {[%emt 0:04:03]} 16. Bc1 {[%emt 0:00:04]} f3 {[%emt 0:22:46]} 17. g3 {[%emt 0:01:51]} Qd7 {[%emt 0:03:03]} 18. Kh2 {[%emt 0:01:08]} Rf5 {[%emt 0:07:51]} 19. h4 {[%emt 0:00:40]} Nf6 {[%emt 0:12:32]} 20. Be3 {[%emt 0:09:40]} Ng4+ {[%emt 0:02:05]} 21. Kg1 {[%emt 0:01:08]} Raf8 {[%emt 0:00:53]} 22. Re1 {[%emt 0:02:43]} Rh5 {[%emt 0:07:21]} 23. Qd3 {[%emt 0:01:14]} Rxh4 {[%emt 0:04:42]} 24. gxh4 {[%emt 0:02:27]} Qc7 {[%emt 0:00:22]} 0-1

[Event "94th Tradewise Hastings Congress"]
[Site "Hastings"]
[Date "2018.12.28"]
[Round "1"]
[White "Bates, Richard A"]
[Black "Eames, Robert S"]
[Result "1-0"]
[ECO "D23"]
[WhiteElo "2372"]
[BlackElo "2167"]
[Annotator "NA"]
[PlyCount "73"]
[EventDate "2018.12.28"]
[EventType "swiss"]
[EventCountry "ENG"]
[SourceTitle "playchess.com"]
[Source "ChessBase"]
[SourceQuality "1"]
[TimeControl "40/6000+30:3000+30"]

1. d4 {[%emt 0:00:00]} Nf6 {[%emt 0:00:00]} 2. Nf3 {[%emt 0:00:26]} d5 {[%emt 0:00:00]} 3. c4 {[%emt 0:00:18]} dxc4 {[%emt 0:00:21]} 4. Qa4+ {[%emt 0:04:26]} c6 {[%emt 0:01:32]} 5. Qxc4 {[%emt 0:00:15]} Bg4 {[%emt 0:00:51]} 6. Nbd2 {[%emt 0:00:17]} Nbd7 {[%emt 0:01:30]} 7. g3 {[%emt 0:00:09]} e6 {[%emt 0:03:06]} 8. Bg2 {[%emt 0:00:09]} Bd6 {[%emt 0:00:25]} 9. Qb3 {[%emt 0:06:28]} Nb6 {[%emt 0:13:49]} 10. O-O {[%emt 0:04:02]} O-O {[%emt 0:01:08]} 11. e4 {[%emt 0:04:31]} Be7 {[%emt 0:02:58]} 12. Qe3 {[%emt 0:03:17]} a5 {[%emt 0:07:16]} 13. b3 {[%emt 0:08:12]} a4 {[%emt 0:00:50]} 14. Bb2 {[%emt 0:00:06]} a3 {[%emt 0:05:20]} 15. Bc1 {[%emt 0:07:00]} Nfd7 {[%emt 0:05:26]} 16. Nc4 {[%emt 0:06:41]} c5 {[%emt 0:02:40]} 17. Nxb6 {[%emt 0:06:49]} Qxb6 {[%emt 0:00:43]} 18. dxc5 {[%emt 0:11:11]} Bxc5 {[%emt 0:00:32]} 19. Qf4 {[%emt 0:04:11]} Bh5 {[%emt 0:10:35]} 20. Bd2 {[%emt 0:04:44]} f5 {[%emt 0:05:48]} 21. Bc3 {[%emt 0:09:04]} fxe4 {[%emt 0:09:47]} 22. Qxe4 {[%emt 0:01:27]} Nf6 {[%emt 0:01:55]} 23. Qe5 {[%emt 0:07:29]} Rf7 {[%emt 0:21:24]} 24. b4 {[%emt 0:06:10]} Bd6 {[%emt 0:02:25]} 25. Qxe6 {[%emt 0:00:59]} Re8 {[%emt 0:00:45]} 26. Qc4 {[%emt 0:02:21]} Kh8 {[%emt 0:05:03]} 27. Rae1 {[%emt 0:01:52]} Rxe1 {[%emt 0:00:34]} 28. Rxe1 {[%emt 0:00:14]} Rc7 {[%emt 0:00:35]} 29. Qb3 {[%emt 0:04:05]} Ng4 {[%emt 0:02:24]} 30. Qe6 {[%emt 0:01:39]} Qxf2+ {[%emt 0:01:15]} 31. Kh1 {[%emt 0:00:05]} Bf8 {[%emt 0:00:32]} 32. Bd4 {[%emt 0:02:10]} Qc2 {[%emt 0:01:11]} 33. Rf1 {[%emt 0:01:42]} Rf7 {[%emt 0:00:50]} 34. h3 {[%emt 0:00:38]} Nf6 {[%emt 0:00:42]} 35. Ng5 {[%emt 0:00:36]} Re7 {[%emt 0:00:24]} 36. Rxf6 {[%emt 0:00:33]} gxf6 {[%emt 0:02:37]} 37. Qxf6+ {[%emt 0:00:20]} 1-0

[Event "94th Tradewise Hastings Congress"]
[Site "Hastings"]
[Date "2018.12.28"]
[Round "1"]
[White "Petrov, Vladimir Sergeev"]
[Black "Spiegel, Stefan"]
[Result "1/2-1/2"]
[ECO "B03"]
[WhiteElo "2365"]
[BlackElo "2124"]
[Annotator "NA"]
[PlyCount "91"]
[EventDate "2018.12.28"]
[EventType "swiss"]
[EventCountry "ENG"]
[SourceTitle "playchess.com"]
[Source "ChessBase"]
[SourceQuality "1"]
[TimeControl "40/6000+30:3000+30"]

1. e4 {[%emt 0:00:00]} Nf6 {[%emt 0:00:00]} 2. e5 {[%emt 0:00:00]} Nd5 3. d4 {[%emt 0:00:00]} Nb6 {[%emt 0:00:00]} 4. c4 {[%emt 0:00:00]} d6 {[%emt 0:00:01]} 5. exd6 {[%emt 0:00:04]} cxd6 {[%emt 0:00:08]} 6. Nc3 {[%emt 0:00:06]} g6 {[%emt 0:00:55]} 7. Be3 {[%emt 0:00:08]} Bg7 {[%emt 0:01:00]} 8. Rc1 {[%emt 0:00:06]} O-O {[%emt 0:02:15]} 9. b3 {[%emt 0:00:05]} Bf5 {[%emt 0:02:28]} 10. Be2 {[%emt 0:05:37]} d5 {[%emt 0:05:41]} 11. c5 {[%emt 0:04:06]} Nc8 {[%emt 0:06:24]} 12. Bf3 {[%emt 0:00:57]} Nc6 {[%emt 0:08:39]} 13. Bxd5 {[%emt 0:10:44]} Nb4 {[%emt 0:05:59]} 14. Bc4 {[%emt 0:02:30]} b6 {[%emt 0:02:56]} 15. Nge2 {[%emt 0:36:30]} bxc5 {[%emt 0:05:05]} 16. dxc5 {[%emt 0:00:26]} Bd3 {[%emt 0:01:38]} 17. O-O {[%emt 0:06:18]} Bxc4 {[%emt 0:00:56]} 18. bxc4 {[%emt 0:00:14]} Qa5 {[%emt 0:03:31]} 19. a3 {[%emt 0:11:31]} Nc6 {[%emt 0:03:15]} 20. Qd5 {[%emt 0:01:00]} Qa6 {[%emt 0:00:03]} 21. Nb5 {[%emt 0:02:14]} e6 {[%emt 0:00:11]} 22. Qe4 {[%emt 0:00:34]} Rb8 {[%emt 0:00:40]} 23. Rfd1 {[%emt 0:03:33]} Qb7 {[%emt 0:06:05]} 24. Rb1 {[%emt 0:05:26]} N8e7 {[%emt 0:00:43]} 25. Nec3 {[%emt 0:05:54]} Ne5 {[%emt 0:02:32]} 26. Qxb7 {[%emt 0:05:13]} Rxb7 {[%emt 0:00:06]} 27. Nd6 {[%emt 0:01:21]} Rd7 {[%emt 0:01:08]} 28. Ncb5 {[%emt 0:04:43]} Rfd8 {[%emt 0:02:56]} 29. Rdc1 {[%emt 0:04:32]} N7c6 {[%emt 0:00:33]} 30. Nd4 {[%emt 0:00:34]} Nxd4 {[%emt 0:00:10]} 31. Bxd4 {[%emt 0:00:10]} Nf3+ {[%emt 0:00:09]} 32. gxf3 {[%emt 0:00:07]} Bxd4 {[%emt 0:00:02]} 33. Nb7 {[%emt 0:01:03]} Rb8 {[%emt 0:00:42]} 34. c6 {[%emt 0:00:23]} Rc7 {[%emt 0:00:02]} 35. Rd1 {[%emt 0:00:47]} Be5 {[%emt 0:00:30]} 36. Na5 {[%emt 0:00:33]} Rxb1 {[%emt 0:00:38]} 37. Rxb1 {[%emt 0:00:15]} Kf8 {[%emt 0:00:16]} 38. Rb7 {[%emt 0:00:41]} Ke8 {[%emt 0:00:28]} 39. c5 {[%emt 0:00:28]} Kd8 {[%emt 0:00:27]} 40. Rb8+ {[%emt 0:00:33]} Ke7 {[%emt 0:00:47]} 41. Rb7 {[%emt 0:04:02]} Kd8 {[%emt 0:00:15]} 42. Nc4 {[%emt 0:03:51]} Bd4 {[%emt 0:03:38]} 43. Rb8+ {[%emt 0:29:28]} Ke7 {[%emt 0:00:07]} 44. Rb7 {[%emt 0:02:29]} Kd8 {[%emt 0:00:05]} 45. Rb8+ {[%emt 0:02:52]} Ke7 {[%emt 0:00:02]} 46. Rb7 {[%emt 0:00:06]} 1/2-1/2

[Event "94th Tradewise Hastings Congress"]
[Site "Hastings"]
[Date "2018.12.28"]
[Round "1"]
[White "Taylor, Adam C"]
[Black "Groffen, Hans"]
[Result "1-0"]
[ECO "A25"]
[WhiteElo "2331"]
[BlackElo "2120"]
[Annotator "NA"]
[PlyCount "39"]
[EventDate "2018.12.28"]
[EventType "swiss"]
[EventCountry "ENG"]
[SourceTitle "playchess.com"]
[Source "ChessBase"]
[SourceQuality "1"]
[TimeControl "40/6000+30:3000+30"]

1. c4 {[%emt 0:00:00]} e5 {[%emt 0:00:00]} 2. Nc3 {[%emt 0:00:00]} Nc6 {[%emt 0:00:00]} 3. g3 {[%emt 0:00:00]} f5 {[%emt 0:00:25]} 4. Nf3 {[%emt 0:00:00]} Nf6 {[%emt 0:00:12]} 5. d4 {[%emt 0:00:00]} e4 {[%emt 0:00:13]} 6. Nh4 {[%emt 0:00:02]} d6 {[%emt 0:00:22]} 7. Nd5 {[%emt 0:10:36]} g6 {[%emt 0:04:41]} 8. Bg5 {[%emt 0:02:57]} Bg7 {[%emt 0:00:46]} 9. e3 {[%emt 0:02:01]} O-O {[%emt 0:01:03]} 10. Ng2 {[%emt 0:01:56]} Ne7 {[%emt 0:03:47]} 11. h4 {[%emt 0:03:34]} c6 {[%emt 0:11:28]} 12. Nxe7+ {[%emt 0:00:42]} Qxe7 {[%emt 0:00:08]} 13. Nf4 {[%emt 0:01:57]} Be6 {[%emt 0:03:44]} 14. h5 {[%emt 0:01:53]} Bf7 {[%emt 0:00:34]} 15. g4 {[%emt 0:02:31]} fxg4 {[%emt 0:02:40]} 16. hxg6 {[%emt 0:02:29]} hxg6 {[%emt 0:01:22]} 17. Qxg4 {[%emt 0:15:10]} d5 {[%emt 0:09:44]} 18. Bxf6 {[%emt 0:00:17]} Qxf6 {[%emt 0:01:45]} 19. Qh3 {[%emt 0:11:21]} Be8 {[%emt 0:05:12]} 20. Be2 {[%emt 0:03:19]} 1-0

[Event "94th Tradewise Hastings Congress"]
[Site "Hastings"]
[Date "2018.12.28"]
[Round "1"]
[White "Derakhshani, Borna"]
[Black "Snape, Ian L"]
[Result "1-0"]
[ECO "A35"]
[WhiteElo "2325"]
[BlackElo "2112"]
[Annotator "NA"]
[PlyCount "85"]
[EventDate "2018.12.28"]
[EventType "swiss"]
[EventCountry "ENG"]
[TimeControl "40/6000+30:3000+30"]

1. Nf3 {[%emt 0:00:00]} Nf6 {[%emt 0:00:00]} 2. c4 {[%emt 0:00:00]} g6 {[%emt 0:00:00]} 3. Nc3 {[%emt 0:00:10]} Bg7 {[%emt 0:00:00]} 4. e3 {[%emt 0:00:12]} c5 {[%emt 0:01:57]} 5. Be2 {[%emt 0:01:11]} O-O {[%emt 0:00:15]} 6. O-O {[%emt 0:00:10]} Nc6 {[%emt 0:01:16]} 7. d4 {[%emt 0:05:43]} cxd4 {[%emt 0:02:45]} 8. Nxd4 {[%emt 0:00:19]} Nxd4 {[%emt 0:05:07]} 9. Qxd4 {[%emt 0:01:18]} d6 {[%emt 0:01:04]} 10. Qh4 {[%emt 0:09:32]} Be6 {[%emt 0:06:16]} 11. e4 {[%emt 0:00:49]} Rc8 {[%emt 0:01:46]} 12. Nd5 {[%emt 0:02:39]} b5 {[%emt 0:06:25]} 13. cxb5 {[%emt 0:01:33]} Nxd5 {[%emt 0:01:10]} 14. exd5 {[%emt 0:00:05]} Bxd5 {[%emt 0:00:05]} 15. Rd1 {[%emt 0:02:24]} Be6 {[%emt 0:05:18]} 16. Be3 {[%emt 0:01:21]} Rc2 {[%emt 0:03:30]} 17. Bd3 {[%emt 0:06:13]} Rxb2 {[%emt 0:01:23]} 18. Qa4 {[%emt 0:01:51]} Qd7 {[%emt 0:23:26]} 19. Qa6 {[%emt 0:11:47]} Bd5 {[%emt 0:06:03]} 20. Bf1 {[%emt 0:02:29]} Bb7 {[%emt 0:01:45]} 21. Qa5 {[%emt 0:03:36]} Rc8 {[%emt 0:07:35]} 22. Rac1 {[%emt 0:02:58]} h5 {[%emt 0:01:40]} 23. Rxc8+ {[%emt 0:08:31]} Qxc8 {[%emt 0:00:53]} 24. Rc1 {[%emt 0:04:29]} Qe6 {[%emt 0:06:37]} 25. Qxa7 {[%emt 0:03:57]} Bd5 {[%emt 0:02:02]} 26. a4 {[%emt 0:06:56]} h4 {[%emt 0:03:58]} 27. h3 {[%emt 0:01:37]} Qe4 {[%emt 0:05:55]} 28. a5 {[%emt 0:08:57]} Kh7 {[%emt 0:04:08]} 29. a6 {[%emt 0:07:20]} f5 {[%emt 0:00:05]} 30. Re1 {[%emt 0:02:34]} e6 {[%emt 0:04:33]} 31. Bh6 {[%emt 0:02:08]} Qd4 {[%emt 0:02:13]} 32. Qxg7+ {[%emt 0:00:03]} Qxg7 {[%emt 0:00:07]} 33. Bxg7 {[%emt 0:00:02]} Kxg7 {[%emt 0:00:04]} 34. Rd1 {[%emt 0:00:20]} Bb3 {[%emt 0:01:10]} 35. a7 {[%emt 0:02:09]} Ra2 {[%emt 0:00:37]} 36. b6 {[%emt 0:00:22]} Bxd1 {[%emt 0:00:07]} 37. b7 {[%emt 0:00:04]} Rxa7 {[%emt 0:00:07]} 38. b8=Q {[%emt 0:00:07]} Rf7 {[%emt 0:00:38]} 39. Qxd6 {[%emt 0:00:05]} Bc2 {[%emt 0:00:35]} 40. Qd4+ {[%emt 0:00:05]} Rf6 {[%emt 0:03:50]} 41. Qxh4 {[%emt 0:51:02]} Bb3 {[%emt 0:50:22]} 42. Qd4 {[%emt 0:01:51]} g5 {[%emt 0:00:27]} 43. Qe3 {[%emt 0:00:05]} 1-0

[Event "94th Tradewise Hastings Congress"]
[Site "Hastings"]
[Date "2018.12.28"]
[Round "1"]
[White "Peek, Marcel"]
[Black "White, Stuart A"]
[Result "0-1"]
[ECO "D38"]
[WhiteElo "2293"]
[BlackElo "2096"]
[Annotator "NA"]
[PlyCount "80"]
[EventDate "2018.12.28"]
[EventType "swiss"]
[EventCountry "ENG"]
[TimeControl "40/6000+30:3000+30"]

1. d4 {[%emt 0:00:13]} d5 {[%emt 0:00:00]} 2. c4 {[%emt 0:00:09]} e6 {[%emt 0:00:00]} 3. Nf3 {[%emt 0:00:12]} Nf6 {[%emt 0:00:00]} 4. Nc3 {[%emt 0:00:30]} Bb4 {[%emt 0:00:00]} 5. cxd5 {[%emt 0:00:40]} exd5 {[%emt 0:00:08]} 6. Qa4+ {[%emt 0:00:32]} Nc6 {[%emt 0:00:08]} 7. Bg5 {[%emt 0:00:06]} h6 {[%emt 0:00:24]} 8. Bxf6 {[%emt 0:00:17]} Qxf6 {[%emt 0:00:11]} 9. e3 {[%emt 0:00:15]} O-O {[%emt 0:00:31]} 10. Be2 {[%emt 0:00:28]} a6 {[%emt 0:00:45]} 11. O-O {[%emt 0:12:33]} Be6 {[%emt 0:00:22]} 12. Rfc1 {[%emt 0:00:21]} Bd6 {[%emt 0:00:30]} 13. Qd1 {[%emt 0:00:56]} Ne7 {[%emt 0:00:35]} 14. g3 {[%emt 0:07:06]} g5 {[%emt 0:06:23]} 15. e4 {[%emt 0:15:46]} dxe4 {[%emt 0:06:01]} 16. Nxe4 {[%emt 0:00:23]} Qg7 {[%emt 0:13:45]} 17. Nxd6 {[%emt 0:02:09]} cxd6 {[%emt 0:00:03]} 18. Rc7 {[%emt 0:02:37]} Rfe8 {[%emt 0:12:33]} 19. Rxb7 {[%emt 0:06:54]} Bd5 {[%emt 0:03:37]} 20. Rb6 {[%emt 0:00:33]} Qf6 {[%emt 0:04:21]} 21. Ne5 {[%emt 0:13:47]} Nc8 {[%emt 0:14:14]} 22. Ng4 {[%emt 0:01:27]} Qe6 {[%emt 0:18:02]} 23. Rxa6 {[%emt 0:00:34]} Qxe2 {[%emt 0:04:15]} 24. Rxa8 {[%emt 0:19:41]} Bxa8 {[%emt 0:00:30]} 25. Nf6+ {[%emt 0:02:57]} Kg7 {[%emt 0:01:31]} 26. Nxe8+ {[%emt 0:00:10]} Qxe8 {[%emt 0:00:04]} 27. Rc1 {[%emt 0:10:46]} Qe4 {[%emt 0:04:12]} 28. f3 {[%emt 0:00:07]} Qe3+ {[%emt 0:00:12]} 29. Kf1 {[%emt 0:00:49]} Bxf3 {[%emt 0:04:07]} 30. Qe1 {[%emt 0:00:27]} Be2+ {[%emt 0:00:28]} 31. Kg2 {[%emt 0:00:06]} Qf3+ {[%emt 0:01:08]} 32. Kg1 {[%emt 0:00:06]} Qe3+ {[%emt 0:03:33]} 33. Kg2 {[%emt 0:00:05]} Ne7 {[%emt 0:02:44]} 34. Qf2 {[%emt 0:12:23]} Qxc1 {[%emt 0:03:57]} 35. Qxe2 {[%emt 0:00:03]} Nf5 {[%emt 0:01:36]} 36. d5 {[%emt 0:00:50]} Ne3+ {[%emt 0:00:50]} 37. Kf2 {[%emt 0:00:33]} Nd1+ {[%emt 0:00:47]} 38. Kf3 {[%emt 0:00:19]} Nxb2 {[%emt 0:00:28]} 39. Qa6 {[%emt 0:01:03]} Qc3+ {[%emt 0:00:52]} 40. Ke2 {[%emt 0:00:31]} Qe5+ {[%emt 0:01:10]} 0-1

[Event "94th Tradewise Hastings Congress"]
[Site "Hastings"]
[Date "2018.12.28"]
[Round "1"]
[White "Moore, Graham J"]
[Black "Korneev, Oleg"]
[Result "0-1"]
[ECO "C45"]
[WhiteElo "2235"]
[BlackElo "2550"]
[Annotator "ChessBase"]
[PlyCount "54"]
[EventDate "2018.12.28"]
[EventType "swiss"]
[EventCountry "ENG"]
[SourceTitle "playchess.com"]
[Source "ChessBase"]
[SourceQuality "1"]
[TimeControl "40/6000+30:3000+30"]

1. e4 {[%emt 0:00:00]} e5 {[%emt 0:00:00]} 2. Nf3 {[%emt 0:00:00]} Nc6 {[%emt 0:03:20]} 3. d4 {[%emt 0:00:10]} exd4 {[%emt 0:00:02]} 4. Nxd4 {[%emt 0:00:06]} Bc5 {[%emt 0:01:09]} 5. Nb3 {[%emt 0:00:16]} Bb6 {[%emt 0:00:06]} 6. Nc3 {[%emt 0:00:08]} Nf6 {[%emt 0:00:09]} 7. Qe2 {[%emt 0:00:21]} O-O {[%emt 0:00:28]} 8. Bg5 {[%emt 0:01:53]} h6 {[%emt 0:00:06]} 9. Bh4 {[%emt 0:01:16]} Nd4 {[%emt 0:08:08]} 10. Qd3 {[%emt 0:03:40]} Nxb3 {[%emt 0:03:43]} 11. cxb3 {[%emt 0:02:53]} c6 {[%emt 0:19:55]} 12. O-O-O {[%emt 0:02:18]} d5 {[%emt 0:15:04]} 13. e5 {[%emt 0:31:46]} Qc7 {[%emt 0:14:05]} 14. Bxf6 {[%emt 0:08:10]} gxf6 {[%emt 0:00:17]} 15. Qg3+ {[%emt 0:00:16]} Kh8 {[%emt 0:00:47]} 16. exf6 {[%emt 0:01:01]} Qxg3 {[%emt 0:00:11]} 17. hxg3 {[%emt 0:01:52]} Bxf2 {[%emt 0:00:13]} 18. Rxh6+ {[%emt 0:00:07]} Kg8 {[%emt 0:00:02]} 19. Rd3 {[%emt 0:03:40]} Re8 {[%emt 0:02:58]} 20. Kd2 {[%emt 0:06:53]} Be1+ {[%emt 0:18:41]} 21. Kd1 {[%emt 0:04:08]} Bf5 {[%emt 0:02:57]} 22. Rf3 {[%emt 0:01:35]} Bg4 {[%emt 0:00:44]} 23. Bd3 {[%emt 0:00:15]} Bxg3 {[%emt 0:07:20]} 24. Bh7+ {[%emt 0:00:51]} Kf8 {[%emt 0:00:03]} 25. Bd3 {[%emt 0:00:34]} Bxf3+ {[%emt 0:00:08]} 26. gxf3 {[%emt 0:00:14]} Re1+ {[%emt 0:00:14]} 27. Kc2 {[%emt 0:09:15]} Rc1+ {[%emt 0:00:11]} 0-1

[Event "94th Tradewise Hastings Congress"]
[Site "Hastings"]
[Date "2018.12.28"]
[Round "1"]
[White "Graham, David B"]
[Black "Petrov, Martin"]
[Result "0-1"]
[ECO "B23"]
[WhiteElo "2208"]
[BlackElo "2472"]
[Annotator "ChessBase"]
[PlyCount "58"]
[EventDate "2018.12.28"]
[EventType "swiss"]
[EventCountry "ENG"]
[SourceTitle "playchess.com"]
[Source "ChessBase"]
[SourceQuality "1"]
[TimeControl "40/6000+30:3000+30"]

1. e4 {[%emt 0:00:00]} c5 {[%emt 0:00:00]} 2. Nc3 {[%emt 0:00:00]} g6 {[%emt 0:00:00]} 3. f4 {[%emt 0:00:00]} Bg7 {[%emt 0:00:03]} 4. Nf3 {[%emt 0:00:03]} Nc6 {[%emt 0:00:17]} 5. Bc4 {[%emt 0:00:40]} e6 {[%emt 0:00:11]} 6. f5 {[%emt 0:00:25]} gxf5 {[%emt 0:00:37]} 7. d3 {[%emt 0:00:16]} Nge7 {[%emt 0:00:11]} 8. O-O {[%emt 0:00:24]} O-O {[%emt 0:00:09]} 9. Bf4 {[%emt 0:08:19]} a6 {[%emt 0:05:03]} 10. a4 d5 {[%emt 0:20:24]} 11. exd5 {[%emt 0:10:46]} exd5 {[%emt 0:00:07]} 12. Bb3 {[%emt 0:10:37]} Be6 {[%emt 0:14:35]} 13. Ne2 {[%emt 0:12:48]} c4 {[%emt 0:07:31]} 14. Ba2 {[%emt 0:01:11]} Ng6 {[%emt 0:08:50]} 15. Be3 {[%emt 0:16:47]} cxd3 {[%emt 0:08:17]} 16. cxd3 {[%emt 0:01:11]} d4 {[%emt 0:00:06]} 17. Bg5 {[%emt 0:04:22]} Qd7 {[%emt 0:01:25]} 18. Qd2 Rae8 {[%emt 0:07:55]} 19. Ng3 {[%emt 0:06:37]} Bxa2 {[%emt 0:02:37]} 20. Rxa2 {[%emt 0:00:06]} f6 {[%emt 0:00:25]} 21. Bf4 {[%emt 0:07:35]} Nce5 {[%emt 0:02:22]} 22. Ra3 {[%emt 0:00:58]} Ng4 {[%emt 0:01:15]} 23. Rb3 {[%emt 0:09:22]} Rf7 {[%emt 0:05:20]} 24. Rc1 {[%emt 0:03:54]} Nxf4 {[%emt 0:00:18]} 25. Rc4 {[%emt 0:03:10]} Bh6 {[%emt 0:01:37]} 26. Qa5 {[%emt 0:01:49]} Rfe7 {[%emt 0:04:46]} 27. Nxf5 {[%emt 0:02:57]} Qxf5 {[%emt 0:00:09]} 28. Qxf5 {[%emt 0:00:13]} Re1+ {[%emt 0:00:06]} 29. Nxe1 {[%emt 0:00:02]} Rxe1# 0-1

[Event "94th Tradewise Hastings Congress"]
[Site "Hastings"]
[Date "2018.12.28"]
[Round "1"]
[White "Stoyanov, Viktor"]
[Black "Lalic, Bogdan"]
[Result "1/2-1/2"]
[ECO "A45"]
[WhiteElo "2205"]
[BlackElo "2420"]
[Annotator "NA"]
[PlyCount "73"]
[EventDate "2018.12.28"]
[EventType "swiss"]
[EventCountry "ENG"]
[SourceTitle "playchess.com"]
[Source "ChessBase"]
[SourceQuality "1"]
[TimeControl "40/6000+30:3000+30"]

1. d4 {[%emt 0:00:00]} Nf6 {[%emt 0:00:00]} 2. Bf4 {[%emt 0:00:00]} d5 {[%emt 0:00:00]} 3. e3 {[%emt 0:00:00]} c5 {[%emt 0:00:00]} 4. c3 {[%emt 0:00:04]} Nc6 {[%emt 0:00:03]} 5. Nd2 {[%emt 0:00:11]} cxd4 {[%emt 0:00:13]} 6. exd4 {[%emt 0:00:12]} Bf5 {[%emt 0:00:12]} 7. Ngf3 {[%emt 0:01:05]} e6 {[%emt 0:00:13]} 8. Be2 {[%emt 0:01:40]} Be7 {[%emt 0:00:20]} 9. h3 {[%emt 0:01:26]} h6 {[%emt 0:00:36]} 10. Bh2 {[%emt 0:01:29]} O-O {[%emt 0:00:29]} 11. O-O {[%emt 0:00:46]} Ne4 {[%emt 0:00:40]} 12. Nxe4 {[%emt 0:11:13]} Bxe4 {[%emt 0:02:24]} 13. Re1 {[%emt 0:11:07]} a6 {[%emt 0:04:55]} 14. Bd3 {[%emt 0:09:04]} Bxd3 {[%emt 0:02:14]} 15. Qxd3 {[%emt 0:00:07]} Qb6 {[%emt 0:00:23]} 16. Re2 {[%emt 0:09:03]} Qb5 {[%emt 0:00:44]} 17. Qd1 {[%emt 0:08:21]} Rac8 {[%emt 0:00:45]} 18. Ne5 {[%emt 0:08:50]} Nxe5 {[%emt 0:00:22]} 19. Bxe5 {[%emt 0:00:06]} Rfe8 {[%emt 0:00:38]} 20. a4 {[%emt 0:06:23]} Qd7 {[%emt 0:00:20]} 21. Re3 {[%emt 0:01:40]} f6 {[%emt 0:05:51]} 22. Bf4 {[%emt 0:04:30]} Bd6 {[%emt 0:01:23]} 23. Qg4 {[%emt 0:04:21]} Bxf4 {[%emt 0:00:10]} 24. Qxf4 {[%emt 0:00:33]} Rc4 {[%emt 0:03:08]} 25. Qg4 {[%emt 0:03:29]} Rxa4 {[%emt 0:07:21]} 26. Rxa4 {[%emt 0:00:08]} Qxa4 {[%emt 0:00:05]} 27. Rxe6 {[%emt 0:00:08]} Qd7 {[%emt 0:00:20]} 28. Rxe8+ {[%emt 0:02:00]} Qxe8 {[%emt 0:00:06]} 29. Qf5 {[%emt 0:00:42]} Qc6 {[%emt 0:00:31]} 30. Kh2 {[%emt 0:00:27]} Kf7 {[%emt 0:00:08]} 31. h4 {[%emt 0:02:08]} a5 {[%emt 0:01:08]} 32. Qh5+ {[%emt 0:01:50]} Kf8 {[%emt 0:00:19]} 33. Qe2 {[%emt 0:00:40]} b5 {[%emt 0:01:04]} 34. Qd3 {[%emt 0:00:24]} b4 {[%emt 0:00:45]} 35. cxb4 {[%emt 0:00:19]} Qd6+ {[%emt 0:00:23]} 36. g3 {[%emt 0:00:55]} Qxb4 {[%emt 0:00:08]} 37. b3 {[%emt 0:00:13]} 1/2-1/2

[Event "94th Tradewise Hastings Congress"]
[Site "Hastings"]
[Date "2018.12.28"]
[Round "1"]
[White "Royset, Pal"]
[Black "Gormally, Daniel W"]
[Result "0-1"]
[ECO "C42"]
[WhiteElo "2182"]
[BlackElo "2478"]
[Annotator "ChessBase"]
[PlyCount "76"]
[EventDate "2018.12.28"]
[EventType "swiss"]
[EventCountry "ENG"]
[SourceTitle "playchess.com"]
[Source "ChessBase"]
[SourceQuality "1"]
[TimeControl "40/6000+30:3000+30"]

1. e4 {[%emt 0:00:37]} e5 {[%emt 0:00:00]} 2. Nf3 {[%emt 0:00:23]} Nf6 {[%emt 0:00:01]} 3. Nc3 {[%emt 0:00:43]} Bb4 {[%emt 0:00:37]} 4. Nd5 {[%emt 0:02:13]} Nxd5 {[%emt 0:03:07]} 5. exd5 {[%emt 0:00:09]} e4 {[%emt 0:02:29]} 6. Nd4 {[%emt 0:02:03]} O-O {[%emt 0:02:11]} 7. Bc4 {[%emt 0:07:57]} d6 {[%emt 0:08:24]} 8. O-O {[%emt 0:02:25]} Bc5 {[%emt 0:00:18]} 9. Nb3 {[%emt 0:01:54]} Bb6 {[%emt 0:00:04]} 10. d3 {[%emt 0:04:55]} exd3 {[%emt 0:00:16]} 11. Qxd3 {[%emt 0:01:57]} Nd7 {[%emt 0:00:47]} 12. Qg3 {[%emt 0:02:01]} Ne5 {[%emt 0:03:16]} 13. Bg5 {[%emt 0:02:22]} Qd7 {[%emt 0:03:14]} 14. Be2 {[%emt 0:07:24]} Qf5 {[%emt 0:01:01]} 15. c4 {[%emt 0:03:28]} Re8 {[%emt 0:03:28]} 16. Rac1 {[%emt 0:08:54]} Qg6 {[%emt 0:02:33]} 17. Rc3 {[%emt 0:05:45]} Bf5 {[%emt 0:05:34]} 18. h4 {[%emt 0:08:19]} h6 {[%emt 0:03:31]} 19. Bd2 {[%emt 0:01:22]} Qxg3 {[%emt 0:10:30]} 20. Rxg3 {[%emt 0:00:06]} Ng6 {[%emt 0:00:05]} 21. Bg4 {[%emt 0:06:07]} Bxg4 {[%emt 0:04:22]} 22. Rxg4 {[%emt 0:00:04]} h5 {[%emt 0:00:50]} 23. Rg5 {[%emt 0:02:47]} Re4 {[%emt 0:01:04]} 24. g3 {[%emt 0:02:07]} Ne5 {[%emt 0:01:40]} 25. Rxh5 {[%emt 0:02:55]} Nf3+ {[%emt 0:06:31]} 26. Kg2 {[%emt 0:00:13]} Nxd2 {[%emt 0:00:04]} 27. Nxd2 {[%emt 0:00:22]} Re2 {[%emt 0:00:03]} 28. Nb3 {[%emt 0:07:53]} Rxb2 {[%emt 0:01:12]} 29. Rf5 {[%emt 0:00:14]} Re8 {[%emt 0:01:02]} 30. Rc1 {[%emt 0:01:10]} Rxa2 {[%emt 0:01:37]} 31. c5 {[%emt 0:00:15]} dxc5 {[%emt 0:00:29]} 32. Nxc5 {[%emt 0:00:11]} Ree2 {[%emt 0:01:06]} 33. d6 {[%emt 0:02:45]} cxd6 {[%emt 0:01:23]} 34. Nxb7 {[%emt 0:00:47]} g6 {[%emt 0:01:24]} 35. Rc8+ {[%emt 0:01:49]} Kg7 {[%emt 0:00:18]} 36. Rf3 {[%emt 0:01:02]} Bxf2 {[%emt 0:02:16]} 37. Nd8 {[%emt 0:01:21]} Bb6+ {[%emt 0:01:11]} 38. Kf1 {[%emt 0:00:17]} Rh2 {[%emt 0:00:49]} 0-1